[Event "FRA-ch Youth U20 2019"]
[Site "Hyeres"]
[Date "2019.04.16"]
[Round "4.1"]
[White "Laronche, Thomas"]
[Black "Pigeat, Alexandre"]
[Result "0-1"]
[ECO "A46"]
[WhiteElo "2107"]
[BlackElo "2347"]
[Annotator "NA"]
[PlyCount "98"]
[EventDate "2019.04.14"]
[EventType "swiss"]
[EventCountry "FRA"]
[SourceTitle "playchess.com"]
[Source "ChessBase"]
[SourceQuality "1"]
[TimeControl "5400+30"]

1. Nf3 {[%emt 0:00:00]} Nf6 {[%emt 0:00:33]} 2. g3 {[%emt 0:00:00]} d6 {[%emt 0:01:10]} 3. d4 {[%emt 0:00:30]} Bf5 {[%emt 0:01:59]} 4. Bg2 {[%emt 0:00:54]} Qc8 {[%emt 0:04:14]} 5. c4 {[%emt 0:21:09]} c6 {[%emt 0:03:56]} 6. Nc3 {[%emt 0:01:10]} Bh3 {[%emt 0:03:28]} 7. Bxh3 {[%emt 0:04:41]} Qxh3 {[%emt 0:00:07]} 8. e4 {[%emt 0:00:12]} h6 {[%emt 0:15:37]} 9. Qe2 {[%emt 0:04:38]} Nfd7 {[%emt 0:05:05]} 10. Be3 {[%emt 0:10:39]} e5 {[%emt 0:09:30]} 11. O-O-O {[%emt 0:09:16]} Be7 {[%emt 0:07:12]} 12. Nh4 {[%emt 0:03:26]} g6 {[%emt 0:06:40]} 13. Nf3 {[%emt 0:00:11]} Qe6 {[%emt 0:01:48]} 14. d5 {[%emt 0:05:51]} Qf6 {[%emt 0:00:54]} 15. Ne1 {[%emt 0:00:21]} c5 {[%emt 0:02:14]} 16. Nd3 {[%emt 0:05:52]} a6 {[%emt 0:01:34]} 17. f4 {[%emt 0:00:25]} Qg7 {[%emt 0:01:20]} 18. fxe5 {[%emt 0:00:40]} dxe5 {[%emt 0:01:47]} 19. Qf2 {[%emt 0:04:54]} b6 {[%emt 0:00:43]} 20. g4 {[%emt 0:03:39]} O-O {[%emt 0:00:53]} 21. h4 {[%emt 0:04:18]} b5 {[%emt 0:04:02]} 22. b3 {[%emt 0:05:18]} bxc4 {[%emt 0:00:09]} 23. bxc4 {[%emt 0:00:07]} Nb6 {[%emt 0:04:22]} 24. Bxc5 {[%emt 0:04:13]} Bxc5 {[%emt 0:00:06]} 25. Qxc5 {[%emt 0:00:05]} N8d7 {[%emt 0:00:05]} 26. Qd6 {[%emt 0:00:05]} Rfd8 {[%emt 0:00:57]} 27. Nb2 {[%emt 0:03:41]} Rac8 {[%emt 0:01:06]} 28. Rh2 {[%emt 0:00:10]} Nxc4 {[%emt 0:03:45]} 29. Nxc4 {[%emt 0:00:16]} Rxc4 {[%emt 0:00:05]} 30. Rc2 {[%emt 0:01:00]} Qf6 {[%emt 0:03:47]} 31. Qxf6 {[%emt 0:01:11]} Nxf6 {[%emt 0:00:02]} 32. g5 {[%emt 0:00:23]} Nxe4 {[%emt 0:02:27]} 33. Nxe4 {[%emt 0:00:11]} Rxe4 {[%emt 0:00:04]} 34. d6 {[%emt 0:00:05]} hxg5 {[%emt 0:02:11]} 35. hxg5 {[%emt 0:01:03]} Rg4 {[%emt 0:00:09]} 36. Rc6 {[%emt 0:01:19]} Rxg5 {[%emt 0:01:11]} 37. Rxa6 {[%emt 0:00:11]} e4 {[%emt 0:00:20]} 38. Rd4 {[%emt 0:01:57]} Re5 {[%emt 0:01:18]} 39. Kd2 {[%emt 0:00:40]} Re6 {[%emt 0:00:29]} 40. Ke3 {[%emt 0:01:29]} f5 {[%emt 0:00:20]} 41. Rd5 {[%emt 0:01:23]} Rd7 {[%emt 0:01:05]} 42. Rc6 {[%emt 0:00:20]} Kf7 {[%emt 0:01:29]} 43. a4 {[%emt 0:00:17]} Kf6 {[%emt 0:00:37]} 44. a5 {[%emt 0:00:22]} g5 {[%emt 0:00:05]} 45. a6 {[%emt 0:00:02]} f4+ {[%emt 0:00:07]} 46. Ke2 {[%emt 0:00:25]} g4 {[%emt 0:00:49]} 47. Rb6 {[%emt 0:01:49]} e3 {[%emt 0:00:14]} 48. Rb7 {[%emt 0:00:13]} f3+ {[%emt 0:00:06]} 49. Ke1 {[%emt 0:00:11]} e2 {[%emt 0:01:07]} 0-1

[Event "FRA-ch Youth U20 2019"]
[Site "Hyeres"]
[Date "2019.04.16"]
[Round "4.2"]
[White "Eugene, Floryan"]
[Black "Roque, Gaetan"]
[Result "1-0"]
[ECO "C41"]
[WhiteElo "2294"]
[BlackElo "2029"]
[Annotator "NA"]
[PlyCount "105"]
[EventDate "2019.04.14"]
[EventType "swiss"]
[EventCountry "FRA"]
[SourceTitle "playchess.com"]
[Source "ChessBase"]
[SourceQuality "1"]
[TimeControl "5400+30"]

1. e4 {[%emt 0:00:02]} d6 {[%emt 0:00:00]} 2. d4 {[%emt 0:00:32]} Nf6 {[%emt 0:00:01]} 3. Nc3 {[%emt 0:00:07]} Nbd7 {[%emt 0:00:03]} 4. Nf3 {[%emt 0:03:28]} e5 {[%emt 0:00:06]} 5. Bc4 {[%emt 0:00:11]} Be7 {[%emt 0:00:04]} 6. a4 {[%emt 0:00:10]} c6 {[%emt 0:00:30]} 7. O-O {[%emt 0:04:11]} O-O {[%emt 0:00:05]} 8. Re1 {[%emt 0:03:32]} a5 {[%emt 0:00:16]} 9. h3 {[%emt 0:02:06]} exd4 {[%emt 0:00:50]} 10. Qxd4 {[%emt 0:06:03]} Nc5 {[%emt 0:03:28]} 11. Be3 {[%emt 0:01:25]} Qc7 {[%emt 0:04:53]} 12. Rad1 {[%emt 0:03:17]} Be6 {[%emt 0:13:39]} 13. Bf4 {[%emt 0:08:05]} Bxc4 {[%emt 0:05:19]} 14. Qxc5 {[%emt 0:01:04]} dxc5 {[%emt 0:00:26]} 15. Bxc7 {[%emt 0:00:04]} Rfc8 {[%emt 0:03:15]} 16. Bd6 {[%emt 0:02:01]} Bxd6 {[%emt 0:05:23]} 17. Rxd6 {[%emt 0:00:05]} Ne8 {[%emt 0:00:04]} 18. Rd2 {[%emt 0:01:44]} Rd8 {[%emt 0:04:58]} 19. Red1 {[%emt 0:00:24]} Rxd2 {[%emt 0:00:07]} 20. Rxd2 {[%emt 0:00:02]} Kf8 {[%emt 0:00:08]} 21. Ne5 {[%emt 0:06:32]} Be6 {[%emt 0:00:37]} 22. Nd7+ {[%emt 0:00:05]} Bxd7 {[%emt 0:14:09]} 23. Rxd7 {[%emt 0:00:05]} b5 {[%emt 0:00:04]} 24. e5 {[%emt 0:09:22]} Rb8 {[%emt 0:03:55]} 25. Ra7 {[%emt 0:20:09]} f6 {[%emt 0:07:46]} 26. f4 {[%emt 0:02:08]} fxe5 {[%emt 0:07:52]} 27. fxe5 {[%emt 0:00:05]} bxa4 {[%emt 0:00:09]} 28. Nxa4 {[%emt 0:00:05]} c4 {[%emt 0:00:12]} 29. Rxa5 {[%emt 0:05:16]} Rb4 {[%emt 0:06:44]} 30. c3 {[%emt 0:01:11]} Rb5 {[%emt 0:00:04]} 31. Ra6 {[%emt 0:00:04]} Rxe5 {[%emt 0:07:22]} 32. Rxc6 {[%emt 0:00:09]} Ke7 {[%emt 0:00:26]} 33. Rxc4 {[%emt 0:00:11]} Kd6 {[%emt 0:00:26]} 34. b4 {[%emt 0:01:21]} Nc7 {[%emt 0:00:18]} 35. Rd4+ {[%emt 0:03:19]} Kc6 {[%emt 0:00:59]} 36. c4 {[%emt 0:00:07]} Ne6 {[%emt 0:00:06]} 37. b5+ {[%emt 0:00:08]} Kc7 {[%emt 0:00:10]} 38. Rd1 {[%emt 0:01:22]} Re4 {[%emt 0:02:49]} 39. Rc1 {[%emt 0:00:17]} Nf4 {[%emt 0:00:05]} 40. Nc3 {[%emt 0:02:11]} Re3 {[%emt 0:03:44]} 41. Nd5+ {[%emt 0:01:35]} Nxd5 {[%emt 0:00:09]} 42. cxd5+ {[%emt 0:00:01]} Kb6 {[%emt 0:00:41]} 43. d6 {[%emt 0:01:00]} Rd3 {[%emt 0:01:01]} 44. Rc7 {[%emt 0:00:05]} g6 {[%emt 0:00:43]} 45. Rxh7 {[%emt 0:00:12]} Rxd6 {[%emt 0:00:04]} 46. Kf2 {[%emt 0:00:24]} Kxb5 {[%emt 0:00:09]} 47. Rc7 {[%emt 0:00:03]} Rd3 {[%emt 0:01:29]} 48. h4 {[%emt 0:00:59]} Ra3 {[%emt 0:00:52]} 49. g3 {[%emt 0:00:14]} Rd3 {[%emt 0:01:14]} 50. Kg2 {[%emt 0:00:04]} Ra3 {[%emt 0:00:05]} 51. Kh3 {[%emt 0:00:04]} Ra4 {[%emt 0:00:05]} 52. Rg7 {[%emt 0:00:26]} Ra6 {[%emt 0:00:11]} 53. Kg4 {[%emt 0:00:02]} 1-0

[Event "FRA-ch Youth U20 2019"]
[Site "Hyeres"]
[Date "2019.04.16"]
[Round "4.3"]
[White "Philippe, Guillaume"]
[Black "Naillou, Thomas"]
[Result "1-0"]
[ECO "B20"]
[WhiteElo "2352"]
[BlackElo "1957"]
[Annotator "NA"]
[PlyCount "67"]
[EventDate "2019.04.14"]
[EventType "swiss"]
[EventCountry "FRA"]
[SourceTitle "playchess.com"]
[Source "ChessBase"]
[SourceQuality "1"]
[TimeControl "5400+30"]

1. e4 {[%emt 0:00:00]} c5 {[%emt 0:00:00]} 2. a3 {[%emt 0:00:00]} e6 {[%emt 0:00:50]} 3. b4 {[%emt 0:00:20]} cxb4 {[%emt 0:04:45]} 4. axb4 {[%emt 0:00:11]} d5 {[%emt 0:00:13]} 5. exd5 {[%emt 0:02:05]} Qxd5 {[%emt 0:01:36]} 6. c3 {[%emt 0:03:31]} Nf6 {[%emt 0:02:15]} 7. Nf3 {[%emt 0:00:13]} Be7 {[%emt 0:02:57]} 8. Be2 {[%emt 0:00:22]} O-O {[%emt 0:02:14]} 9. O-O {[%emt 0:00:31]} b6 {[%emt 0:01:20]} 10. Na3 {[%emt 0:00:25]} Nc6 {[%emt 0:09:14]} 11. Nc4 {[%emt 0:01:39]} Bb7 {[%emt 0:04:28]} 12. d4 {[%emt 0:00:19]} Ne4 {[%emt 0:02:27]} 13. Qd3 {[%emt 0:00:30]} f5 {[%emt 0:02:32]} 14. Ne3 {[%emt 0:01:59]} Qd6 {[%emt 0:02:51]} 15. b5 {[%emt 0:01:37]} Na5 {[%emt 0:02:06]} 16. c4 {[%emt 0:00:15]} Rad8 {[%emt 0:02:09]} 17. Qc2 {[%emt 0:01:55]} Rc8 {[%emt 0:04:56]} 18. Bb2 {[%emt 0:05:54]} Qc7 {[%emt 0:04:46]} 19. Rfc1 {[%emt 0:06:06]} g5 {[%emt 0:03:06]} 20. Ne5 {[%emt 0:01:24]} Bd6 {[%emt 0:01:48]} 21. Bf3 {[%emt 0:01:25]} Bxe5 {[%emt 0:03:24]} 22. dxe5 {[%emt 0:00:05]} Nc5 {[%emt 0:01:02]} 23. Bxb7 {[%emt 0:00:21]} Qxb7 {[%emt 0:00:58]} 24. Rd1 {[%emt 0:00:08]} Rfd8 {[%emt 0:04:15]} 25. Rd6 {[%emt 0:05:14]} Ne4 {[%emt 0:02:16]} 26. Rad1 {[%emt 0:04:03]} Nxd6 {[%emt 0:07:18]} 27. exd6 {[%emt 0:00:04]} Rc5 {[%emt 0:00:27]} 28. Qc3 {[%emt 0:01:32]} e5 {[%emt 0:00:23]} 29. Ba3 {[%emt 0:00:05]} Qc8 {[%emt 0:00:21]} 30. Bxc5 {[%emt 0:00:36]} Qxc5 {[%emt 0:01:33]} 31. Rd5 {[%emt 0:00:04]} Qc8 {[%emt 0:00:10]} 32. c5 {[%emt 0:00:21]} f4 {[%emt 0:03:10]} 33. Qxe5 {[%emt 0:00:56]} fxe3 {[%emt 0:01:40]} 34. Qxg5+ {[%emt 0:00:05]} 1-0

[Event "FRA-ch Youth U20 2019"]
[Site "Hyeres"]
[Date "2019.04.16"]
[Round "4.4"]
[White "De Lussac, Rainier"]
[Black "Guerlach, Keigo"]
[Result "1/2-1/2"]
[ECO "D31"]
[WhiteElo "2152"]
[BlackElo "2071"]
[Annotator "NA"]
[PlyCount "65"]
[EventDate "2019.04.14"]
[EventType "swiss"]
[EventCountry "FRA"]
[SourceTitle "playchess.com"]
[Source "ChessBase"]
[SourceQuality "1"]
[TimeControl "5400+30"]

1. d4 {[%emt 0:00:39]} d5 {[%emt 0:00:00]} 2. c4 {[%emt 0:00:37]} e6 {[%emt 0:00:00]} 3. Nc3 {[%emt 0:00:37]} c6 {[%emt 0:00:02]} 4. Nf3 {[%emt 0:01:08]} dxc4 {[%emt 0:00:47]} 5. a4 {[%emt 0:04:56]} Bb4 {[%emt 0:00:40]} 6. e4 {[%emt 0:02:40]} b5 {[%emt 0:27:43]} 7. Bd2 {[%emt 0:06:47]} a5 {[%emt 0:06:21]} 8. axb5 {[%emt 0:05:32]} Bxc3 {[%emt 0:00:10]} 9. bxc3 {[%emt 0:02:45]} cxb5 {[%emt 0:00:24]} 10. Qb1 {[%emt 0:00:13]} Bd7 {[%emt 0:03:54]} 11. Be2 {[%emt 0:00:28]} Ne7 {[%emt 0:02:01]} 12. Bd1 {[%emt 0:06:41]} O-O {[%emt 0:02:50]} 13. O-O {[%emt 0:03:41]} Qb6 {[%emt 0:06:36]} 14. Ne5 {[%emt 0:09:20]} Rc8 {[%emt 0:06:26]} 15. Bc2 {[%emt 0:06:06]} f6 {[%emt 0:05:55]} 16. Nxd7 {[%emt 0:11:26]} Nxd7 {[%emt 0:00:01]} 17. Be3 {[%emt 0:03:31]} Qb7 {[%emt 0:03:18]} 18. d5 {[%emt 0:07:01]} e5 {[%emt 0:00:01]} 19. Bd1 {[%emt 0:01:37]} Nf8 {[%emt 0:06:47]} 20. f4 {[%emt 0:01:30]} exf4 {[%emt 0:06:32]} 21. Bxf4 {[%emt 0:02:52]} Neg6 {[%emt 0:00:25]} 22. Bg3 {[%emt 0:04:44]} Ne5 {[%emt 0:20:07]} 23. Bxe5 {[%emt 0:02:54]} fxe5 {[%emt 0:00:00]} 24. Bg4 {[%emt 0:14:15]} Rcb8 {[%emt 0:00:00]} 25. Qd1 {[%emt 0:00:00]} b4 {[%emt 0:00:00]} 26. cxb4 {[%emt 0:00:00]} axb4 {[%emt 0:00:00]} 27. Rxa8 {[%emt 0:00:00]} Rxa8 {[%emt 0:00:00]} 28. d6 {[%emt 0:00:00]} Rd8 {[%emt 0:00:00]} 29. d7 {[%emt 0:00:00]} Qxe4 {[%emt 0:01:12]} 30. Rxf8+ {[%emt 0:00:00]} Kxf8 {[%emt 0:00:01]} 31. Qd6+ {[%emt 0:00:00]} Kg8 {[%emt 0:00:01]} 32. Qe6+ {[%emt 0:02:18]} Kf8 {[%emt 0:00:01]} 33. Qd6+ {[%emt 0:00:48]} 1/2-1/2

[Event "FRA-ch Youth U20 2019"]
[Site "Hyeres"]
[Date "2019.04.17"]
[Round "5.1"]
[White "Pigeat, Alexandre"]
[Black "Eugene, Floryan"]
[Result "0-1"]
[ECO "A01"]
[WhiteElo "2347"]
[BlackElo "2294"]
[Annotator "NA RC"]
[PlyCount "74"]
[EventDate "2019.04.14"]
[EventType "swiss"]
[EventCountry "FRA"]
[SourceTitle "playchess.com"]
[Source "ChessBase"]
[SourceQuality "1"]
[TimeControl "5400+30"]

1. b3 {[%emt 0:00:00]} e5 {[%emt 0:00:12]} 2. Bb2 {[%emt 0:00:00]} Nc6 {[%emt 0:00:06]} 3. e3 {[%emt 0:00:31]} Nf6 {[%emt 0:03:14]} 4. Ne2 {[%emt 0:01:55]} d6 {[%emt 0:05:46]} 5. Ng3 {[%emt 0:01:46]} g6 {[%emt 0:00:55]} 6. Be2 {[%emt 0:01:04]} Bg7 {[%emt 0:00:19]} 7. O-O {[%emt 0:02:03]} h5 {[%emt 0:03:30]} 8. c4 {[%emt 0:06:18]} h4 {[%emt 0:04:39]} 9. Nh1 {[%emt 0:00:12]} Bf5 {[%emt 0:03:33]} 10. f3 {[%emt 0:02:34]} Nh5 {[%emt 0:02:05]} 11. Nc3 {[%emt 0:02:30]} Qg5 {[%emt 0:08:27]} 12. Nd5 {[%emt 0:06:24]} O-O-O {[%emt 0:02:22]} 13. b4 {[%emt 0:04:36]} Be6 {[%emt 0:04:59]} 14. Qa4 {[%emt 0:13:45]} Kb8 {[%emt 0:04:43]} 15. Rac1 {[%emt 0:03:21]} f5 {[%emt 0:03:26]} 16. f4 {[%emt 0:03:59]} Qh6 {[%emt 0:04:57]} 17. Nxc7 {[%emt 0:13:50]} Kxc7 {[%emt 0:05:10]} 18. c5 {[%emt 0:00:17]} Ng3 {[%emt 0:15:30]} 19. Bb5 {[%emt 0:08:27]} h3 {[%emt 0:00:57]} 20. cxd6+ {[%emt 0:13:55]} Rxd6 {[%emt 0:00:59]} 21. gxh3 {[%emt 0:02:21]} Qxh3 {[%emt 0:01:25]} 22. Rf2 {[%emt 0:00:15]} Nxh1 {[%emt 0:00:31]} 23. Bxc6 {[%emt 0:01:24]} Rxc6 {[%emt 0:02:12]} 24. Rxc6+ {[%emt 0:00:35]} bxc6 {[%emt 0:00:24]} 25. Qxa7+ {[%emt 0:00:18]} Kd8 {[%emt 0:03:18]} 26. Qb8+ {[%emt 0:06:43]} Ke7 {[%emt 0:00:46]} 27. Qc7+ {[%emt 0:00:35]} Kf8 {[%emt 0:00:15]} 28. Qd6+ {[%emt 0:00:46]} Kf7 {[%emt 0:00:12]} 29. Qc7+ {[%emt 0:00:04]} Kg8 {[%emt 0:00:50]} 30. Qxc6 {[%emt 0:00:18]} Nxf2 {[%emt 0:00:42]} 31. Qxe6+ {[%emt 0:00:06]} Kh7 {[%emt 0:00:03]} 32. Kxf2 {[%emt 0:00:12]} Qxh2+ {[%emt 0:01:24]} 33. Ke1 {[%emt 0:00:14]} Rd8 {[%emt 0:00:30]} 34. Bc3 {[%emt 0:00:31]} Qh4+ {[%emt 0:01:17]} 35. Kd1 {[%emt 0:00:26]} Qh1+ {[%emt 0:01:03]} 36. Kc2 {[%emt 0:01:14]} Qe4+ {[%emt 0:00:24]} 37. Kb2 {[%emt 0:00:11]} Rxd2+ {[%emt 0:00:20]} 0-1

[Event "FRA-ch Youth U20 2019"]
[Site "Hyeres"]
[Date "2019.04.17"]
[Round "5.4"]
[White "Afraoui, Anaelle"]
[Black "Roussel, Simon"]
[Result "1/2-1/2"]
[ECO "C66"]
[WhiteElo "2031"]
[BlackElo "2126"]
[Annotator "RC"]
[PlyCount "152"]
[EventDate "2019.04.14"]
[EventType "swiss"]
[EventCountry "FRA"]
[SourceTitle "playchess.com"]
[Source "ChessBase"]
[SourceQuality "1"]
[TimeControl "5400+30"]

1. e4 {[%emt 0:00:00]} e5 {[%emt 0:00:00]} 2. Nf3 {[%emt 0:00:00]} Nc6 {[%emt 0:00:00]} 3. Bb5 {[%emt 0:00:00]} Nf6 {[%emt 0:01:23]} 4. O-O {[%emt 0:00:00]} Be7 {[%emt 0:00:20]} 5. Re1 {[%emt 0:00:25]} d6 {[%emt 0:00:05]} 6. d4 {[%emt 0:00:52]} exd4 {[%emt 0:00:05]} 7. Nxd4 {[%emt 0:00:18]} Bd7 {[%emt 0:00:04]} 8. Nc3 {[%emt 0:01:03]} O-O {[%emt 0:00:08]} 9. Bxc6 {[%emt 0:02:52]} bxc6 {[%emt 0:03:11]} 10. Qf3 {[%emt 0:02:33]} Rb8 {[%emt 0:15:49]} 11. b3 {[%emt 0:09:13]} Re8 {[%emt 0:19:53]} 12. Bb2 {[%emt 0:09:15]} Bf8 {[%emt 0:03:20]} 13. h3 {[%emt 0:03:16]} c5 {[%emt 0:08:16]} 14. Nf5 {[%emt 0:11:06]} g6 {[%emt 0:06:07]} 15. Ne3 {[%emt 0:01:49]} Bg7 {[%emt 0:00:08]} 16. Ncd5 {[%emt 0:23:57]} Nxe4 {[%emt 0:15:43]} 17. Bxg7 {[%emt 0:01:14]} Kxg7 {[%emt 0:00:40]} 18. Ng4 {[%emt 0:09:05]} f5 {[%emt 0:06:11]} 19. Rxe4 {[%emt 0:07:19]} Rxe4 {[%emt 0:00:07]} 20. Ngf6 {[%emt 0:00:14]} Re5 {[%emt 0:05:00]} 21. Qc3 {[%emt 0:01:39]} Kf7 {[%emt 0:04:53]} 22. f4 {[%emt 0:01:00]} Rxd5 {[%emt 0:00:48]} 23. Nxd5 {[%emt 0:00:19]} c6 {[%emt 0:03:15]} 24. Ne3 {[%emt 0:00:16]} Qf6 {[%emt 0:00:20]} 25. Qxf6+ {[%emt 0:01:43]} Kxf6 {[%emt 0:00:01]} 26. Nc4 {[%emt 0:00:15]} Ke7 {[%emt 0:01:45]} 27. Rd1 {[%emt 0:01:19]} Be6 {[%emt 0:00:48]} 28. Ne3 {[%emt 0:01:48]} Rb4 {[%emt 0:02:02]} 29. g3 {[%emt 0:00:47]} Rd4 {[%emt 0:00:48]} 30. Kf2 {[%emt 0:00:42]} Rxd1 {[%emt 0:00:26]} 31. Nxd1 {[%emt 0:00:08]} Bd5 {[%emt 0:00:15]} 32. Ke3 {[%emt 0:02:04]} Be4 {[%emt 0:00:11]} 33. Kd2 {[%emt 0:00:29]} h6 {[%emt 0:01:22]} 34. h4 {[%emt 0:00:45]} Kf6 {[%emt 0:00:35]} 35. Nb2 {[%emt 0:00:39]} Ke6 {[%emt 0:03:31]} 36. Nc4 {[%emt 0:00:33]} Ke7 {[%emt 0:00:00]} 37. Kc3 {[%emt 0:02:03]} Bd5 {[%emt 0:00:00]} 38. Ne3 {[%emt 0:02:48]} Be6 {[%emt 0:00:00]} 39. Nd1 {[%emt 0:01:20]} Kf6 {[%emt 0:00:00]} 40. Kd3 {[%emt 0:00:31]} g5 {[%emt 0:00:00]} 41. hxg5+ {[%emt 0:00:15]} hxg5 {[%emt 0:00:00]} 42. Ke3 {[%emt 0:02:41]} Bd5 {[%emt 0:00:27]} 43. Nf2 {[%emt 0:00:40]} g4 {[%emt 0:01:34]} 44. Kd3 {[%emt 0:00:44]} Bf3 {[%emt 0:00:07]} 45. Ke3 {[%emt 0:00:42]} Ke6 {[%emt 0:00:11]} 46. c3 {[%emt 0:00:37]} Kd7 {[%emt 0:00:22]} 47. Kd3 {[%emt 0:00:45]} Kc7 {[%emt 0:00:05]} 48. Kd2 {[%emt 0:00:13]} Kb6 {[%emt 0:00:05]} 49. Nd3 {[%emt 0:00:09]} Be4 {[%emt 0:00:05]} 50. Nb2 {[%emt 0:00:39]} d5 {[%emt 0:00:34]} 51. Na4+ {[%emt 0:00:56]} Kb5 {[%emt 0:00:17]} 52. Nb2 {[%emt 0:02:00]} Bb1 {[%emt 0:01:35]} 53. a3 {[%emt 0:00:00]} Be4 {[%emt 0:00:14]} 54. Kc1 {[%emt 0:00:08]} c4 {[%emt 0:00:33]} 55. bxc4+ {[%emt 0:00:32]} dxc4 {[%emt 0:00:06]} 56. Kd2 {[%emt 0:00:11]} Kc5 {[%emt 0:00:27]} 57. Ke3 {[%emt 0:00:16]} Bc2 {[%emt 0:00:10]} 58. Kd2 {[%emt 0:00:20]} Bb3 {[%emt 0:00:10]} 59. Ke2 {[%emt 0:00:37]} Kd5 {[%emt 0:00:10]} 60. Kd2 {[%emt 0:00:34]} Ke4 {[%emt 0:00:29]} 61. Ke2 {[%emt 0:00:03]} Bc2 {[%emt 0:01:53]} 62. Kf2 {[%emt 0:00:30]} Bd3 {[%emt 0:00:42]} 63. Na4 {[%emt 0:00:40]} Kd5 {[%emt 0:01:11]} 64. Ke3 {[%emt 0:00:27]} Be4 {[%emt 0:00:36]} 65. Kd2 {[%emt 0:00:28]} Bg2 {[%emt 0:00:27]} 66. Ke3 {[%emt 0:00:15]} Bf1 {[%emt 0:00:26]} 67. Nb2 {[%emt 0:00:10]} Kc5 {[%emt 0:01:16]} 68. Kf2 {[%emt 0:00:18]} Bd3 {[%emt 0:00:07]} 69. Ke3 {[%emt 0:00:07]} Bc2 {[%emt 0:00:10]} 70. Kd2 {[%emt 0:00:31]} Bb3 {[%emt 0:00:04]} 71. Ke2 {[%emt 0:00:25]} Kd6 {[%emt 0:00:09]} 72. Ke1 {[%emt 0:00:58]} Ke6 {[%emt 0:00:13]} 73. Ke2 {[%emt 0:00:08]} Kd5 {[%emt 0:00:23]} 74. Kd2 {[%emt 0:00:38]} Ke4 {[%emt 0:00:08]} 75. Ke2 {[%emt 0:00:05]} Bc2 {[%emt 0:01:22]} 76. Kf2 {[%emt 0:00:31]} Bd3 {[%emt 0:00:08]} 1/2-1/2

[Event "FRA-ch Youth U20 2019"]
[Site "Hyeres"]
[Date "2019.04.18"]
[Round "6.1"]
[White "Eugene, Floryan"]
[Black "Laurent-Paoli, Pierre"]
[Result "0-1"]
[ECO "B15"]
[WhiteElo "2294"]
[BlackElo "2352"]
[Annotator "NA"]
[PlyCount "94"]
[EventDate "2019.04.14"]
[EventType "swiss"]
[EventCountry "FRA"]
[SourceTitle "playchess.com"]
[Source "ChessBase"]
[SourceQuality "1"]
[TimeControl "5400+30"]

1. e4 {[%emt 0:00:00]} c6 {[%emt 0:00:00]} 2. d4 {[%emt 0:01:15]} d5 {[%emt 0:00:00]} 3. Nc3 {[%emt 0:00:10]} dxe4 {[%emt 0:01:15]} 4. Nxe4 {[%emt 0:00:12]} Nf6 {[%emt 0:03:53]} 5. Nxf6+ {[%emt 0:00:06]} exf6 {[%emt 0:00:04]} 6. c3 {[%emt 0:00:08]} Bd6 {[%emt 0:00:03]} 7. Bd3 {[%emt 0:00:13]} O-O {[%emt 0:00:05]} 8. Qc2 {[%emt 0:00:10]} Re8+ {[%emt 0:00:03]} 9. Ne2 {[%emt 0:00:06]} h5 {[%emt 0:00:02]} 10. Be3 {[%emt 0:13:15]} Be6 {[%emt 0:19:44]} 11. Ng3 {[%emt 0:10:07]} h4 {[%emt 0:02:30]} 12. Nf5 {[%emt 0:00:38]} Bxf5 {[%emt 0:01:28]} 13. Bxf5 {[%emt 0:00:04]} Bf4 {[%emt 0:03:58]} 14. O-O-O {[%emt 0:01:04]} Bxe3+ {[%emt 0:09:22]} 15. fxe3 {[%emt 0:00:05]} Qd5 {[%emt 0:01:25]} 16. Kb1 {[%emt 0:14:45]} Rxe3 {[%emt 0:11:21]} 17. Qf2 {[%emt 0:14:43]} Re8 {[%emt 0:04:58]} 18. g3 {[%emt 0:00:12]} h3 {[%emt 0:03:10]} 19. Bxh3 {[%emt 0:00:54]} Nd7 {[%emt 0:01:49]} 20. Qf5 {[%emt 0:05:53]} Nb6 {[%emt 0:01:56]} 21. Qxd5 {[%emt 0:04:47]} Nxd5 {[%emt 0:00:06]} 22. Rde1 {[%emt 0:02:01]} g6 {[%emt 0:03:40]} 23. Kc2 {[%emt 0:01:21]} Kg7 {[%emt 0:00:11]} 24. Kd3 {[%emt 0:01:22]} Rxe1 {[%emt 0:02:50]} 25. Rxe1 {[%emt 0:00:03]} Rh8 {[%emt 0:00:03]} 26. c4 {[%emt 0:09:16]} Nb4+ {[%emt 0:12:01]} 27. Kc3 {[%emt 0:00:04]} Nxa2+ {[%emt 0:00:29]} 28. Kb3 {[%emt 0:00:04]} Rxh3 {[%emt 0:00:05]} 29. Kxa2 {[%emt 0:00:20]} Rxh2 {[%emt 0:00:07]} 30. Re7 {[%emt 0:02:37]} Rd2 {[%emt 0:01:40]} 31. Rxb7 {[%emt 0:07:09]} Rxd4 {[%emt 0:00:05]} 32. Kb3 {[%emt 0:00:03]} f5 {[%emt 0:05:36]} 33. Kb4 {[%emt 0:02:26]} Rg4 {[%emt 0:03:24]} 34. Rc7 {[%emt 0:02:03]} Rxg3 {[%emt 0:00:55]} 35. Rxc6 {[%emt 0:00:02]} f4 {[%emt 0:00:12]} 36. Rd6 {[%emt 0:00:01]} f3 {[%emt 0:00:48]} 37. Rd1 {[%emt 0:01:06]} f2 {[%emt 0:00:35]} 38. Rf1 {[%emt 0:00:03]} Rf3 {[%emt 0:00:02]} 39. c5 {[%emt 0:00:02]} Kf6 {[%emt 0:00:02]} 40. Kb5 {[%emt 0:01:47]} Ke7 {[%emt 0:01:49]} 41. Kc6 {[%emt 0:00:28]} g5 {[%emt 0:02:31]} 42. Kb7 {[%emt 0:01:40]} g4 {[%emt 0:01:47]} 43. c6 {[%emt 0:00:11]} g3 {[%emt 0:00:09]} 44. c7 {[%emt 0:00:11]} Rb3+ {[%emt 0:00:05]} 45. Kc8 {[%emt 0:00:55]} Rb6 {[%emt 0:00:30]} 46. b4 {[%emt 0:00:20]} Rc6 {[%emt 0:00:04]} 47. Kb7 {[%emt 0:01:24]} Rxc7+ {[%emt 0:06:38]} 0-1

[Event "FRA-ch Youth U20 2019"]
[Site "Hyeres"]
[Date "2019.04.18"]
[Round "6.2"]
[White "Guerlach, Keigo"]
[Black "Pigeat, Alexandre"]
[Result "0-1"]
[ECO "C00"]
[WhiteElo "2071"]
[BlackElo "2347"]
[Annotator "NA"]
[PlyCount "56"]
[EventDate "2019.04.14"]
[EventType "swiss"]
[EventCountry "FRA"]
[SourceTitle "playchess.com"]
[Source "ChessBase"]
[SourceQuality "1"]
[TimeControl "5400+30"]

1. e4 {[%emt 0:00:00]} e6 {[%emt 0:00:00]} 2. d3 {[%emt 0:00:00]} d5 {[%emt 0:00:08]} 3. Nd2 {[%emt 0:00:00]} Nf6 {[%emt 0:00:36]} 4. Ngf3 {[%emt 0:00:00]} Bc5 {[%emt 0:00:47]} 5. Be2 {[%emt 0:01:27]} O-O {[%emt 0:02:02]} 6. O-O {[%emt 0:00:23]} Nc6 {[%emt 0:03:54]} 7. c3 {[%emt 0:02:16]} Be7 {[%emt 0:09:20]} 8. e5 {[%emt 0:05:11]} Nd7 {[%emt 0:00:20]} 9. d4 {[%emt 0:00:12]} f6 {[%emt 0:00:34]} 10. exf6 {[%emt 0:01:57]} Bxf6 {[%emt 0:03:18]} 11. Re1 {[%emt 0:05:14]} Kh8 {[%emt 0:01:34]} 12. Bd3 {[%emt 0:00:57]} e5 {[%emt 0:10:21]} 13. dxe5 {[%emt 0:00:50]} Bxe5 {[%emt 0:00:11]} 14. Qc2 {[%emt 0:22:19]} h6 {[%emt 0:02:24]} 15. c4 {[%emt 0:07:39]} Qf6 {[%emt 0:30:42]} 16. cxd5 {[%emt 0:05:12]} Nd4 {[%emt 0:00:13]} 17. Qd1 {[%emt 0:24:35]} Bd6 {[%emt 0:07:02]} 18. Re4 {[%emt 0:10:53]} Nxf3+ {[%emt 0:01:59]} 19. Qxf3 {[%emt 0:03:29]} Qd8 {[%emt 0:03:41]} 20. Qe2 {[%emt 0:02:59]} Nc5 {[%emt 0:00:39]} 21. Rc4 {[%emt 0:00:46]} b5 {[%emt 0:01:43]} 22. Rxc5 {[%emt 0:00:49]} Bxc5 {[%emt 0:01:33]} 23. Ne4 {[%emt 0:00:16]} Bd4 {[%emt 0:00:31]} 24. Qh5 {[%emt 0:01:34]} Qe8 {[%emt 0:00:26]} 25. Qh4 {[%emt 0:00:32]} Bf5 {[%emt 0:01:06]} 26. Bxh6 {[%emt 0:01:06]} gxh6 {[%emt 0:00:32]} 27. Qxh6+ {[%emt 0:00:02]} Kg8 {[%emt 0:00:10]} 28. Re1 {[%emt 0:02:33]} Qg6 {[%emt 0:00:19]} 0-1